fUSD/lending_fUSD_20251120
["ID","MTS","AMOUNT","RATE_DAILY","PERIOD"]
[394495336,1763632320248,-1210.38,0.00038129,2]
[394495337,1763632320264,-1014.96,0.0003816,2]
[394495338,1763632320279,-223.96854226,0.00038185,120]
[394495339,1763632320294,-152.0,0.00038191,8]
[394495340,1763632320308,-172.0,0.00038266,120]
[394495341,1763632320323,-617.91613,0.00038288,30]
[394495342,1763632320337,-464.33850577,0.00038443,6]
[394495343,1763632320351,-1066.57147047,0.0003845,6]
[394495344,1763632320364,-617.91613,0.00038488,30]
[394495345,1763632320379,-575.0,0.00038611,2]
[394495346,1763632320394,-609.0,0.00038611,2]
[394495347,1763632320409,-1319.0,0.00038611,2]
[394495348,1763632320422,-822.0,0.00038611,2]
[394495349,1763632320436,-907.0,0.00038611,2]
[394495350,1763632320449,-1191.0,0.00038611,2]
[394495351,1763632320464,-794.0,0.00038611,2]
[394495352,1763632320479,-1256.0,0.00038611,2]
[394495353,1763632320495,-705.0,0.00038611,2]
[394495354,1763632320510,-662.52,0.00038611,2]
[394495355,1763632320525,-617.91613,0.00038688,30]
[394495356,1763632320541,-500.0,0.000387,120]
[394495357,1763632320556,-500.0,0.000387,120]
[394495358,1763632320572,-500.0,0.000387,120]
[394495359,1763632320587,-900.0,0.000387,2]
[394495360,1763632320602,-900.0,0.000387,2]
[394495361,1763632320616,-900.0,0.000387,2]
[394495362,1763632320631,-900.0,0.000387,2]
[394495363,1763632320646,-900.0,0.000387,2]
[394495364,1763632320661,-900.0,0.000387,2]
[394495365,1763632320677,-900.0,0.000387,2]
[394495366,1763632320692,-900.0,0.000387,2]
[394495367,1763632320706,-900.0,0.000387,2]
[394495368,1763632320722,-900.0,0.000387,2]
[394495369,1763632320737,-900.0,0.000387,2]
[394495370,1763632320752,-900.0,0.000387,2]
[394495371,1763632320767,-900.0,0.000387,2]
[394495372,1763632320783,-900.0,0.000387,2]
[394495373,1763632320800,-900.0,0.000387,2]
[394495374,1763632320814,-900.0,0.000387,2]
[394495375,1763632320828,-900.0,0.000387,2]
[394495376,1763632320843,-900.0,0.000387,2]
[394495377,1763632320859,-900.0,0.000387,2]
[394495378,1763632320875,-900.0,0.000387,2]
[394495379,1763632320890,-900.0,0.000387,2]
[394495380,1763632320906,-900.0,0.000387,2]
[394495381,1763632320920,-900.0,0.000387,2]
[394495382,1763632320935,-900.0,0.000387,2]
[394495383,1763632320950,-900.0,0.000387,2]
[394495384,1763632320965,-900.0,0.000387,2]
[394495385,1763632320981,-900.0,0.000387,2]
[394495386,1763632320996,-900.0,0.000387,2]
[394495387,1763632321012,-900.0,0.000387,2]
[394495388,1763632321027,-900.0,0.000387,2]
[394495389,1763632321042,-900.0,0.000387,2]
[394495390,1763632321056,-900.0,0.000387,2]
[394495391,1763632321071,-900.0,0.000387,2]
[394495392,1763632321086,-900.0,0.000387,2]
[394495393,1763632321101,-900.0,0.000387,2]
[394495394,1763632321118,-900.0,0.000387,2]
[394495395,1763632321132,-900.0,0.000387,2]
[394495396,1763632321146,-900.0,0.000387,2]
[394495397,1763632321160,-900.0,0.000387,2]
[394495398,1763632321175,-900.0,0.000387,2]
[394495399,1763632321190,-900.0,0.000387,2]
[394495400,1763632321204,-900.0,0.000387,2]
[394495401,1763632321218,-900.0,0.000387,2]
[394495402,1763632321231,-900.0,0.000387,2]
[394495403,1763632321246,-900.0,0.000387,2]
[394495404,1763632321260,-900.0,0.000387,2]
[394495405,1763632321606,-900.0,0.000387,2]
[394495406,1763632321616,-900.0,0.000387,2]
[394495407,1763632321626,-900.0,0.000387,2]
[394495408,1763632321636,-900.0,0.000387,2]
[394495409,1763632321646,-900.0,0.000387,2]
[394495410,1763632321655,-900.0,0.000387,2]
[394495411,1763632321665,-900.0,0.000387,2]
[394495412,1763632321675,-900.0,0.000387,2]
[394495413,1763632321684,-900.0,0.000387,2]
[394495414,1763632321693,-900.0,0.000387,2]
[394495415,1763632321703,-900.0,0.000387,2]
[394495416,1763632321712,-900.0,0.000387,2]
[394495417,1763632321721,-900.0,0.000387,2]
[394495418,1763632321731,-900.0,0.000387,2]
[394495419,1763632321741,-900.0,0.000387,2]
[394495420,1763632321750,-900.0,0.000387,2]
[394495421,1763632321760,-900.0,0.000387,2]
[394495422,1763632321769,-900.0,0.000387,2]
[394495423,1763632321782,-900.0,0.000387,2]
[394495424,1763632321793,-900.0,0.000387,2]
[394495425,1763632321803,-900.0,0.000387,2]
[394495426,1763632321814,-900.0,0.000387,2]
[394495427,1763632321826,-900.0,0.000387,2]
[394495428,1763632321836,-900.0,0.000387,2]
[394495429,1763632321847,-900.0,0.000387,2]
[394495430,1763632321857,-900.0,0.000387,2]
[394495431,1763632321868,-900.0,0.000387,2]
[394495432,1763632321878,-208.46049895,0.000387,2]
[394495433,1763632321888,-900.0,0.000387,2]
[394495434,1763632321898,-900.0,0.000387,2]
[394495435,1763632321908,-900.0,0.000387,2]
[394495436,1763632321918,-900.0,0.000387,2]
[394495437,1763632321928,-900.0,0.000387,2]
[394495438,1763632321937,-900.0,0.000387,2]
[394495439,1763632321947,-900.0,0.000387,2]
[394495440,1763632321958,-900.0,0.000387,2]
[394495441,1763632321968,-900.0,0.000387,2]
[394495442,1763632321978,-13963.33950199,0.000388,14]
[394495443,1763632321987,-1014.96,0.0003888,2]
[394495444,1763632321997,-2333.41,0.000389,30]
[394495445,1763632322007,-3011.97,0.00038904,2]
[394495446,1763632322017,-701.05,0.00038951,2]
[394495447,1763632322028,-701.05,0.00038951,2]
[394495448,1763632322038,-701.05,0.00038951,2]
[394495449,1763632322047,-701.05,0.00038951,2]
[394495450,1763632322057,-701.05,0.00038951,2]
[394495451,1763632322066,-701.05,0.00038951,2]
[394495452,1763632322079,-701.05,0.00038951,2]
[394495453,1763632322089,-701.05,0.00038951,2]
[394495454,1763632322098,-701.05,0.00038951,2]
[394495455,1763632322108,-701.05,0.00038951,2]
[394495456,1763632322117,-701.05,0.00038951,2]
[394495457,1763632322127,-701.05,0.00038951,2]
[394495458,1763632322136,-701.05,0.00038951,2]
[394495459,1763632322146,-701.05,0.00038951,2]
[394495460,1763632322156,-701.05,0.00038951,2]
[394495461,1763632322166,-701.05,0.00038951,2]
[394495462,1763632322176,-701.05,0.00038951,2]
[394495463,1763632322187,-701.05,0.00038951,2]
[394495464,1763632322197,-701.05,0.00038951,2]
[394495465,1763632322206,-171.4,0.00038951,2]
[394495466,1763632322216,-1200.94,0.00038951,2]
[394495467,1763632322226,-1204.65,0.00038951,2]
[394495468,1763632322235,-339.15,0.00038951,2]
[394495469,1763632322244,-150.0,0.00038957,2]
[394495470,1763632322254,-150.0,0.00038957,2]
[394495471,1763632322264,-300.0,0.00038957,2]
[394495472,1763632322273,-169.6,0.00038957,2]
[394495473,1763632322283,-169.6,0.00038957,2]
[394495474,1763632322293,-169.6,0.00038957,2]
[394495475,1763632322303,-150.0,0.00038957,2]
[394495476,1763632322313,-169.6,0.00038957,2]
[394495477,1763632322324,-150.0,0.00038957,2]
[394495478,1763632322334,-150.0,0.00038957,2]
[394495479,1763632322343,-7840.07242896,0.0003899,120]
[394495480,1763632322353,-2673.11395617,0.00039,2]
[394495481,1763632322363,-44416.90733641,0.00039,2]
[394495482,1763632322372,-148505.54,0.00039,7]
[394495483,1763632322382,-500.0,0.00039,21]
[394495484,1763632322391,-500.0,0.00039,21]
[394495485,1763632322400,-500.0,0.00039,21]
[394495486,1763632322411,-8746.0,0.00039,15]
[394495487,1763632322421,-1201.75217731,0.00039,120]
[394495488,1763632322431,-774.0,0.00039,30]
[394495489,1763632322441,-429.33954295,0.00039,30]
[394495490,1763632322450,-237.31784924,0.00039025,30]
[394495491,1763632322460,-617.91613,0.00039088,30]
[394495492,1763632322471,-226.0,0.00039092,120]
[394495493,1763632322481,-152.0,0.00039222,9]
[394495494,1763632322490,-155.97,0.00039256,120]
[394495495,1763632322499,-617.91613,0.00039288,30]
[394495496,1763632322509,-156.93,0.00039308,120]
[394495497,1763632322519,-150.89,0.00039313,120]
[394495498,1763632322529,-155.97,0.00039356,120]
[394495499,1763632322538,-1000.0,0.00039369,7]
[394495500,1763632322547,-152.93,0.00039384,120]
[394495501,1763632322557,-156.93,0.00039408,120]
[394495502,1763632322567,-150.89,0.00039413,120]
[394495503,1763632322578,-426.33734981,0.00039451,7]
[394495504,1763632322588,-155.97,0.00039456,120]
[394495505,1763632322599,-1472.4,0.00039484,2]
[394495506,1763632322609,-476.09,0.00039484,30]
[394495507,1763632322619,-1099.18,0.00039484,2]
[394495508,1763632322630,-617.91613,0.00039488,30]
[394495509,1763632322640,-500000.0,0.000395,2]
[394495510,1763632322650,-1625912.89,0.000395,7]
[394495511,1763632322660,-156.93,0.00039508,120]
[394495512,1763632322670,-150.89,0.00039513,120]
[394495513,1763632322680,-660.58,0.00039535,60]
[394495514,1763632322689,-155.97,0.00039556,120]
[394495515,1763632322699,-1156.91,0.000396,14]
[394495516,1763632322708,-1014.96,0.000396,30]
[394495517,1763632322719,-156.93,0.00039608,120]
[394495518,1763632322728,-150.89,0.00039613,120]
[394495519,1763632322737,-1000.0,0.0003963,7]
[394495520,1763632322747,-530.99,0.00039654,2]
[394495521,1763632322757,-156.02,0.00039656,120]
[394495522,1763632322767,-617.91613,0.00039688,30]
[394495523,1763632322778,-156.93,0.00039708,120]
[394495524,1763632322789,-150.89,0.00039713,120]
[394495525,1763632322800,-200.79217022,0.00039726,5]
[394495526,1763632322810,-1101.36,0.0003975,2]
[394495527,1763632322819,-550.51,0.00039751,2]
[394495528,1763632322830,-1000.0,0.00039757,7]
[394495529,1763632322838,-1000.0,0.00039776,7]
[394495530,1763632322848,-1000.0,0.00039792,7]
[394495531,1763632322858,-989.3,0.00039798,30]
[394495532,1763632322871,-171.68512118,0.000398,120]
[394495533,1763632322881,-156.93,0.00039808,120]
[394495534,1763632322890,-150.89,0.00039813,120]
[394495535,1763632322900,-1000.0,0.00039857,7]
[394495536,1763632322909,-166.0,0.00039871,90]
[394495537,1763632322920,-300.0,0.00039885,2]
[394495538,1763632322930,-617.91613,0.00039888,30]
[394495539,1763632322939,-87337.36761978,0.000399,2]
[394495540,1763632322949,-185.5397676,0.000399,120]
[394495541,1763632322959,-156.93,0.00039908,120]
[394495542,1763632322968,-701.05,0.0003991,2]
[394495543,1763632322978,-701.05,0.0003991,2]
[394495544,1763632322988,-701.05,0.0003991,2]
[394495545,1763632323002,-701.05,0.0003991,2]
[394495546,1763632323011,-701.05,0.0003991,2]
[394495547,1763632323021,-398.81,0.0003991,2]
[394495548,1763632323031,-150.89,0.00039913,120]
[394495549,1763632323041,-300.0,0.00039916,2]
[394495550,1763632323051,-5202.23227391,0.0003998,2]
[394495551,1763632323061,-300.0,0.00039988,2]
[394495552,1763632323071,-8007.24682841,0.00039999,2]
[394495553,1763632323081,-11330.18652322,0.00039999,2]
[394495554,1763632323091,-4635.01645803,0.0004,4]
[394495555,1763632323100,-416.82379315,0.0004,7]
[394495556,1763632323111,-6040.29110093,0.0004,4]
[394495557,1763632323121,-500.0,0.0004,7]
[394495558,1763632323130,-121577.01337017,0.0004,2]
[394495559,1763632323139,-4002.09696132,0.0004,2]
[394495560,1763632323150,-1136.39,0.0004,21]
[394495561,1763632323159,-1000.0,0.0004,20]
[394495562,1763632323169,-160.92162124,0.0004,3]
[394495563,1763632323178,-190.48626647,0.0004,5]
[394495564,1763632323188,-2299.99999801,0.0004,2]
[394495565,1763632323198,-674.79,0.0004,30]
[394495566,1763632323207,-249.77750683,0.0004,30]
[394495567,1763632323217,-354.92579723,0.0004,120]
[394495568,1763632323227,-358.70603912,0.0004,120]
[394495569,1763632323235,-746.85440682,0.0004,30]
[394495570,1763632323245,-164.13496762,0.0004,30]
[394495571,1763632323255,-423.08,0.0004,120]
[394495572,1763632323264,-190.68,0.0004,30]
[394495573,1763632323273,-300.0,0.0004,120]
[394495574,1763632323282,-774.0,0.0004,30]
[394495575,1763632323292,-183.86333442,0.0004,3]
[394495576,1763632323301,-5131.39789881,0.0004,120]
[394495577,1763632323311,-2020.1744209,0.0004,120]
[394495578,1763632323322,-407.1,0.0004,120]
[394495579,1763632323333,-228.84,0.0004,120]
[394495580,1763632323343,-2223.95,0.0004,120]
[394495581,1763632323353,-1223.02,0.0004,120]
[394495582,1763632323362,-156.93,0.00040008,120]
[394495583,1763632323371,-223.65467123,0.00040012,120]
[394495584,1763632323381,-223.96854226,0.00040012,120]
[394495585,1763632323390,-150.89,0.00040013,120]
[394495586,1763632323399,-1000.0,0.00040018,7]
[394495587,1763632323409,-1000.0,0.00040046,7]
[394495588,1763632323419,-300.0,0.00040055,2]
[394495589,1763632323428,-617.91613,0.00040088,30]
[394495590,1763632323439,-156.93,0.00040108,120]
[394495591,1763632323448,-1000.0,0.00040109,7]
[394495592,1763632323457,-150.89,0.00040113,120]
[394495593,1763632323467,-150.0,0.00040138,120]
[394495594,1763632323477,-1000.0,0.00040155,7]
[394495595,1763632323487,-1000.0,0.00040191,7]
[394495596,1763632323497,-300.0,0.00040192,2]
[394495597,1763632323506,-1000.0,0.00040204,7]
[394495598,1763632323516,-156.93,0.00040208,120]
[394495599,1763632323526,-150.89,0.00040213,120]
[394495600,1763632323535,-1798.672,0.00040249,57]
[394495601,1763632323545,-152.0,0.00040254,10]
[394495602,1763632323555,-921.6650261,0.00040262,7]
[394495603,1763632323565,-300.0,0.00040268,2]
[394495604,1763632323575,-617.91613,0.00040288,30]
[394495605,1763632323584,-300.0,0.00040301,2]
[394495606,1763632323594,-1000.0,0.00040302,7]
[394495607,1763632323604,-156.99320533,0.00040308,120]
[394495608,1763632323613,-150.89,0.00040313,120]
[394495609,1763632323623,-1000.0,0.00040315,7]
[394495610,1763632323632,-1014.96,0.0004032,120]
[394495611,1763632323642,-300.0,0.00040324,2]
[394495612,1763632323653,-1000.0,0.00040376,7]
[394495613,1763632323662,-300.2014,0.00040379,100]
[394495614,1763632323673,-300.0,0.00040386,2]
[394495615,1763632323682,-300.0,0.00040404,2]
[394495616,1763632323691,-300.0,0.00040411,2]
[394495617,1763632323701,-150.89,0.00040413,120]
[394495618,1763632323711,-1110.12,0.00040413,14]
[394495619,1763632323722,-300.0,0.00040474,2]
[394495620,1763632323732,-617.91613,0.00040488,30]
[394495621,1763632323742,-1000.0,0.00040506,7]
[394495622,1763632323752,-150.89,0.00040513,120]
[394495623,1763632323761,-300.0,0.00040526,2]
[394495624,1763632323770,-1000.0,0.00040527,7]
[394495625,1763632323782,-1000.0,0.00040548,7]
[394495626,1763632323794,-300.0,0.00040568,2]
[394495627,1763632323803,-1000.0,0.00040574,7]
[394495628,1763632323813,-150.0,0.00040584,2]
[394495629,1763632323824,-354.9,0.00040584,2]
[394495630,1763632323834,-150.0,0.00040585,2]
[394495631,1763632323843,-300.0,0.00040585,2]
[394495632,1763632323853,-417.12,0.00040585,2]
[394495633,1763632323863,-150.0,0.00040585,2]
[394495634,1763632323874,-417.12,0.00040585,2]
[394495635,1763632323884,-300.0,0.0004059,2]
[394495636,1763632323894,-300.0,0.00040595,2]
[394495637,1763632323903,-300.0,0.00040598,2]
[394495638,1763632323913,-150.89,0.00040613,120]
[394495639,1763632323922,-300.0,0.00040646,2]
[394495640,1763632323932,-1000.0,0.0004065,7]
[394495641,1763632323943,-300.0,0.00040677,2]
[394495642,1763632323953,-617.91613,0.00040688,30]
[394495643,1763632323963,-6650.0,0.000407,117]
[394495644,1763632323973,-600.0,0.000407,14]
[394495645,1763632323983,-150.89,0.00040713,120]
[394495646,1763632323993,-300.0,0.00040716,2]
[394495647,1763632324003,-300.0,0.00040718,2]
[394495648,1763632324013,-300.0,0.00040741,2]
[394495649,1763632324023,-300.0,0.00040744,2]
[394495650,1763632324032,-1000.0,0.00040766,7]
[394495651,1763632324042,-300.0,0.00040776,2]
[394495652,1763632324052,-172.0615402,0.00040778,30]
[394495653,1763632324062,-1000.0,0.0004078,7]
[394495654,1763632324072,-300.0,0.00040783,2]
[394495655,1763632324081,-957.22,0.00040796,2]
[394495656,1763632324092,-2000.0,0.000408,2]
[394495657,1763632324101,-1477.0,0.000408,14]
[394495658,1763632324111,-150.89,0.00040813,120]
[394495659,1763632324121,-300.0,0.00040835,2]
[394495660,1763632324131,-300.0,0.00040841,2]
[394495661,1763632324141,-300.0,0.00040855,2]
[394495662,1763632324151,-1000.0,0.00040859,7]
[394495663,1763632324161,-300.0,0.00040861,2]
[394495664,1763632324170,-300.0,0.00040879,2]
[394495665,1763632324180,-300.0,0.00040883,2]
[394495666,1763632324189,-617.91613,0.00040888,30]
[394495667,1763632324198,-300.0,0.00040894,2]
[394495668,1763632324208,-300.0,0.00040898,2]
[394495669,1763632324217,-1022.0,0.00040898,30]
[394495670,1763632324227,-300.0,0.00040899,2]
[394495671,1763632324236,-1017.60674157,0.000409,120]
[394495672,1763632324246,-4590.55713474,0.000409,120]
[394495673,1763632324256,-59916.68580345,0.000409,10]
[394495674,1763632324266,-300.0,0.00040903,2]
[394495675,1763632324275,-300.0,0.00040912,2]
[394495676,1763632324285,-150.89,0.00040913,120]
[394495677,1763632324295,-150.0,0.00040924,7]
[394495678,1763632324306,-300.0,0.00040926,2]
[394495679,1763632324316,-1000.0,0.00040926,7]
[394495680,1763632324326,-300.0,0.0004093,2]
[394495681,1763632324336,-300.0,0.00040933,2]
[394495682,1763632324346,-511.49,0.00040993,7]
[394495683,1763632324355,-500.0,0.00040993,7]
[394495684,1763632324365,-506.28,0.00040993,7]
[394495685,1763632324375,-500.0,0.00040993,7]
[394495686,1763632324384,-500.0,0.00040993,7]
[394495687,1763632324394,-500.0,0.00040993,7]
[394495688,1763632324403,-500.0,0.00040993,7]
[394495689,1763632324413,-500.0,0.00040993,7]
[394495690,1763632324423,-500.0,0.00040993,7]
[394495691,1763632324433,-500.0,0.00040993,7]
[394495692,1763632324443,-500.0,0.00040993,7]
[394495693,1763632324452,-500.0,0.00040993,7]
[394495694,1763632324657,-500.0,0.00040993,7]
[394495696,1763632324672,-231.24,0.00040993,7]
[394495697,1763632324681,-500.0,0.00040993,7]
[394495698,1763632324691,-500.0,0.00040993,7]
[394495699,1763632324701,-500.0,0.00040993,7]
[394495700,1763632324710,-500.0,0.00040993,7]
[394495701,1763632324720,-500.0,0.00040993,7]
[394495702,1763632324729,-500.0,0.00040993,7]
[394495703,1763632324738,-506.5,0.00040993,7]
[394495704,1763632324748,-500.0,0.00040993,7]
[394495705,1763632324758,-300.0,0.00040994,2]
[394495706,1763632324767,-300.0,0.00040998,2]
[394495707,1763632324777,-7417522.10227158,0.00041,2]
[394495708,1763632324789,-8370973.15770313,0.00041,2]
[394495709,1763632324799,-11493487.58553118,0.00041,2]
[394495710,1763632324808,-259934.13242961,0.00041,2]
[394495711,1763632324818,-796.80216354,0.00041,3]
[394495712,1763632324830,-50509.06719688,0.00041,30]
[394495713,1763632324839,-472550.1306434,0.00041,2]
[394495714,1763632324849,-774.0,0.00041,30]
[394495715,1763632324858,-160.0,0.00041,45]
[394495716,1763632324870,-73958.40011427,0.00041,30]
[394495717,1763632324880,-73958.40011427,0.00041,30]
[394495718,1763632324890,-543.7287466,0.00041,30]
[394495719,1763632324899,-10000.0,0.00041,120]
[394495720,1763632324910,-635.69788,0.00041,20]
[394495721,1763632324919,-870.84191195,0.00041,30]
[394495722,1763632324929,-300.0,0.00041007,2]
[394495723,1763632324939,-150.89,0.00041013,120]
[394495724,1763632324949,-300.0,0.00041018,2]
[394495725,1763632324958,-408.02351572,0.00041038,13]
[394495726,1763632324968,-408.02351572,0.00041038,13]
[394495727,1763632324979,-408.02351572,0.00041038,13]
[394495728,1763632324988,-408.02351572,0.00041038,13]
[394495729,1763632324997,-408.02351572,0.00041038,13]
[394495730,1763632325007,-408.02351572,0.00041038,13]
[394495731,1763632325017,-408.02351572,0.00041038,13]
[394495732,1763632325026,-408.02351572,0.00041038,13]
[394495733,1763632325036,-1014.96,0.0004104,120]
[394495734,1763632325045,-226.0,0.00041047,120]
[394495735,1763632325055,-300.0,0.00041068,22]
[394495736,1763632325065,-617.91613,0.00041088,30]
[394495737,1763632325074,-500.0,0.00041095,15]
[394495738,1763632325084,-500.0,0.00041095,2]
[394495739,1763632325093,-1025.68,0.00041095,2]
[394495740,1763632325103,-500.0,0.00041095,2]
[394495741,1763632325113,-4229.25,0.00041095,2]
[394495742,1763632325123,-500.0,0.00041095,2]
[394495743,1763632325132,-500.0,0.00041095,2]
[394495744,1763632325142,-300.0,0.00041095,2]
[394495745,1763632325151,-300.0,0.00041095,2]
[394495746,1763632325161,-910.42808652,0.00041095,120]
[394495747,1763632325170,-500.0,0.00041095,2]
[394495748,1763632325180,-500.0,0.00041095,2]
[394495749,1763632325189,-495.16745201,0.00041095,2]
[394495750,1763632325199,-500.0,0.00041096,30]
[394495751,1763632325209,-150.99031744,0.00041096,10]
[394495752,1763632325219,-503.3,0.00041096,120]
[394495753,1763632325228,-222.38,0.00041096,120]
[394495754,1763632325238,-154.75,0.00041096,2]
[394495755,1763632325247,-500.0,0.00041096,2]
[394495756,1763632325258,-204.95656587,0.00041096,2]
[394495757,1763632325268,-565.0,0.000411,2]
[394495758,1763632325279,-3096.67746835,0.000411,120]
[394495759,1763632325289,-3096.67746835,0.000411,120]
[394495760,1763632325298,-3096.67746835,0.000411,120]
[394495761,1763632325308,-3096.67746835,0.000411,120]
[394495762,1763632325317,-3096.67746835,0.000411,120]
[394495763,1763632325328,-3096.67746835,0.000411,120]
[394495764,1763632325337,-3096.67746835,0.000411,120]
[394495765,1763632325347,-3096.67746835,0.000411,120]
[394495766,1763632325357,-3096.67746835,0.000411,120]
[394495767,1763632325367,-3096.67746835,0.000411,120]
[394495768,1763632325376,-3096.67746835,0.000411,120]
[394495769,1763632325386,-3096.67746835,0.000411,120]
[394495770,1763632325395,-3096.67746835,0.000411,120]
[394495771,1763632325405,-3096.67746835,0.000411,120]
[394495773,1763632325414,-3096.67746835,0.000411,120]
[394495774,1763632325424,-3096.67746835,0.000411,120]
[394495775,1763632325434,-3096.67746835,0.000411,120]
[394495776,1763632325444,-3096.67746835,0.000411,120]
[394495777,1763632325454,-3096.67746835,0.000411,120]
[394495778,1763632325464,-3096.67,0.000411,120]
[394495779,1763632325473,-7225.58075948,0.000411,120]
[394495780,1763632325483,-7225.58075948,0.000411,120]
[394495781,1763632325492,-7225.58075948,0.000411,120]
[394495782,1763632325502,-7225.58075948,0.000411,120]
[394495783,1763632325511,-7225.58075948,0.000411,120]
[394495784,1763632325521,-7225.58075948,0.000411,120]
[394495785,1763632325531,-7225.58075948,0.000411,120]
[394495786,1763632325541,-7225.58075948,0.000411,120]
[394495787,1763632325550,-7225.58075948,0.000411,120]
[394495788,1763632325561,-7225.58075948,0.000411,120]
[394495789,1763632325571,-7225.58075948,0.000411,120]
[394495790,1763632325582,-7225.58075948,0.000411,120]
[394495791,1763632325592,-7225.58075948,0.000411,120]
[394495792,1763632325602,-7225.58075948,0.000411,120]
[394495793,1763632325612,-7225.58075948,0.000411,120]
[394495794,1763632325622,-7225.58075948,0.000411,120]
[394495795,1763632325632,-7225.58075948,0.000411,120]
[394495796,1763632325642,-7225.58075948,0.000411,120]
[394495797,1763632325652,-7225.58075948,0.000411,120]
[394495798,1763632325663,-7225.58,0.000411,120]
[394495799,1763632325673,-727.95452268,0.000411,120]
[394495800,1763632325682,-727.95452268,0.000411,120]
[394495801,1763632325692,-727.95452268,0.000411,120]
[394495802,1763632325701,-727.95452268,0.000411,120]
[394495803,1763632325711,-727.95452268,0.000411,120]
[394495804,1763632325720,-727.95452268,0.000411,120]
[394495805,1763632325730,-727.95452268,0.000411,120]
[394495806,1763632325740,-727.95452268,0.000411,120]
[394495807,1763632325749,-727.95452268,0.000411,120]
[394495808,1763632325759,-727.95452268,0.000411,120]
[394495809,1763632325769,-727.95452268,0.000411,120]
[394495810,1763632325779,-727.95452268,0.000411,120]
[394495811,1763632325792,-727.95452268,0.000411,120]
[394495812,1763632325802,-727.95452268,0.000411,120]
[394495813,1763632325811,-727.95452268,0.000411,120]
[394495814,1763632325821,-727.95452268,0.000411,120]
[394495815,1763632325831,-727.95452268,0.000411,120]
[394495816,1763632325841,-727.95452268,0.000411,120]
[394495817,1763632325851,-727.95452268,0.000411,120]
[394495818,1763632325861,-727.95,0.000411,120]
[394495819,1763632325871,-1698.56055291,0.000411,120]
[394495820,1763632325881,-1698.56055291,0.000411,120]
[394495821,1763632325891,-1698.56055291,0.000411,120]
[394495822,1763632325901,-1698.56055291,0.000411,120]
[394495823,1763632325910,-1698.56055291,0.000411,120]
[394495824,1763632325920,-1698.56055291,0.000411,120]
[394495825,1763632325930,-1698.56055291,0.000411,120]
[394495826,1763632325939,-1698.56055291,0.000411,120]
[394495827,1763632325949,-1698.56055291,0.000411,120]
[394495828,1763632325959,-1698.56055291,0.000411,120]
[394495829,1763632325968,-1698.56055291,0.000411,120]
[394495830,1763632325978,-1698.56055291,0.000411,120]
[394495831,1763632325988,-1698.56055291,0.000411,120]
[394495832,1763632325997,-1698.56055291,0.000411,120]
[394495833,1763632326008,-1698.56055291,0.000411,120]
[394495834,1763632326018,-1698.56055291,0.000411,120]
[394495835,1763632326028,-1698.56055291,0.000411,120]
[394495836,1763632326038,-1698.56055291,0.000411,120]
[394495837,1763632326048,-1698.56055291,0.000411,120]